fUST/lending_fUST_20250826
["ID","MTS","AMOUNT","RATE_DAILY","PERIOD"]
[381406014,1756187260105,-480.0,0.00042739,30]
[381406015,1756187260154,-480.0,0.00042739,30]
[381406016,1756187260206,-485.53,0.00042739,30]
[381406017,1756187260257,-1611.97,0.00042739,30]
[381406018,1756187260309,-480.0,0.00042739,30]
[381406019,1756187260360,-480.0,0.00042739,30]
[381406020,1756187260412,-985.29,0.00042739,30]
[381406022,1756187260466,-584.0,0.00042739,30]
[381406023,1756187260519,-1751.84,0.00042739,30]
[381406024,1756187260579,-480.0,0.00042739,30]
[381406025,1756187260631,-480.0,0.00042739,30]
[381406026,1756187260682,-989.75,0.00042739,30]
[381406027,1756187260737,-2363.72,0.00042739,30]
[381406028,1756187260791,-480.0,0.00042739,30]
[381406029,1756187260847,-480.0,0.00042739,30]
[381406030,1756187260901,-537.11,0.00042739,30]
[381406031,1756187260955,-610.09,0.00042739,30]
[381406032,1756187261009,-1799.8,0.00042739,30]
[381406033,1756187261062,-480.0,0.00042739,30]
[381406034,1756187261115,-2008.45,0.00042739,30]
[381406035,1756187261168,-553.74,0.00042739,30]
[381406036,1756187261218,-414.75716554,0.00042739,30]
[381406037,1756187261269,-480.0,0.00042739,30]
[381406038,1756187261319,-480.0,0.00042739,30]
[381406039,1756187261371,-502.77,0.00042739,30]
[381406040,1756187261423,-480.0,0.00042739,30]
[381406041,1756187261474,-3517.09,0.00042739,30]
[381406042,1756187261528,-684.49,0.00042739,30]
[381406043,1756187261597,-2570.02,0.00042739,30]
[381406044,1756187261648,-1172.04,0.00042739,30]
[381406045,1756187261698,-480.0,0.00042739,30]
[381406046,1756187261747,-1601.43,0.00042739,30]
[381406047,1756187261800,-493.99,0.00042739,30]
[381406048,1756187261854,-2567.15,0.00042739,30]
[381406049,1756187261907,-480.0,0.00042739,30]
[381406050,1756187261956,-480.0,0.00042739,30]
[381406051,1756187262006,-557.14,0.00042739,30]
[381406052,1756187262062,-592.73,0.00042739,30]
[381406053,1756187262114,-27644.96,0.00042739,30]
[381406054,1756187262168,-600.12,0.00042739,30]
[381406055,1756187262219,-480.0,0.00042739,30]
[381406056,1756187262270,-500.28,0.00042739,30]
[381406057,1756187262320,-2439.56,0.00042739,30]
[381406058,1756187262371,-480.0,0.00042739,30]
[381406059,1756187262423,-9223.21,0.00042739,30]
[381406060,1756187262474,-480.0,0.00042739,30]
[381406061,1756187262522,-592.12,0.00042739,30]
[381406062,1756187262573,-816.8,0.00042739,30]
[381406063,1756187262625,-354.22971536,0.00042739,30]
[381406064,1756187263404,-4571.21170755,0.00029592,2]
[381406065,1756187263419,-10000.01,0.00029592,2]
[381406066,1756187263433,-3946.93733965,0.00029592,2]
[381406067,1756187266217,300.0,0.00029591,2]
[381406068,1756187272622,160.0,0.00029592,2]
[381406069,1756187288272,205.38,0.00026954,7]
[381406070,1756187313428,350.67783669,0.000199,2]
[381406071,1756187313494,350.67783645,0.00021627,2]
[381406072,1756187313556,350.67783645,0.00023353,2]
[381406073,1756187313630,350.67783645,0.0002508,2]
[381406074,1756187313829,350.67783645,0.00026806,6]
[381406075,1756187313893,350.67783645,0.00028533,10]
[381406092,1756187432370,-470.21261488,0.00029651,2]
[381406113,1756187438165,-839.21121282,0.00029651,2]
[381406114,1756187438174,-199.0,0.000297,10]
[381406115,1756187438183,-199.0,0.000298,10]
[381406116,1756187438193,-199.0,0.000299,10]
[381406117,1756187438201,-184.13304,0.00030008,2]
[381406118,1756187438210,-3562.3587727,0.00030137,2]
[381406119,1756187438221,-350.67783645,0.00030259,13]
[381406121,1756187438230,-216.09257821,0.00030349,2]
[381406123,1756187438240,-376.39720582,0.00030349,2]
[381406125,1756187438249,-217.18350301,0.00030349,2]
[381406127,1756187438258,-232.53539143,0.00030418,2]
[381406129,1756187438268,-370.374256,0.00031021,2]
[381406131,1756187438277,-350.67783645,0.00031986,17]
[381406133,1756187438287,-500.0,0.00032986,7]
[381406135,1756187438297,-525.0,0.00032986,7]
[381406137,1756187438306,-500.0,0.00032986,7]
[381406139,1756187438316,-442.5958429,0.00032986,7]
[381406142,1756187438325,-500.0,0.00032986,2]
[381406145,1756187438335,-500.0,0.00032986,7]
[381406147,1756187438344,-500.0,0.00032986,7]
[381406149,1756187438353,-500.0,0.00032986,7]
[381406151,1756187438364,-500.0,0.00032986,7]
[381406153,1756187438374,-500.0,0.00032986,7]
[381406155,1756187438383,-500.0,0.00032986,2]
[381406156,1756187438393,-500.0,0.00032986,7]
[381406157,1756187438402,-500.0,0.00032986,7]
[381406158,1756187438411,-500.0,0.00032986,7]
[381406159,1756187438420,-500.0,0.00032986,7]
[381406160,1756187438430,-500.0,0.00032986,7]
[381406161,1756187438439,-500.0,0.00032986,2]
[381406162,1756187438448,-500.0,0.00032986,7]
[381406163,1756187438457,-415.36850841,0.00032986,7]
[381406164,1756187438467,-500.0,0.00032986,7]
[381406165,1756187438476,-500.0,0.00032986,7]
[381406166,1756187438485,-500.0,0.00032986,7]
[381406167,1756187438494,-500.0,0.00032986,7]
[381406168,1756187438503,-606.56714039,0.00032986,7]
[381406169,1756187438512,-500.0,0.00032986,2]
[381406170,1756187438521,-451.75153589,0.00032986,7]
[381406172,1756187438531,-516.94351839,0.00032986,7]
[381406174,1756187438540,-500.0,0.00032986,7]
[381406175,1756187438549,-500.0,0.00032986,7]
[381406176,1756187438560,-500.0,0.00032986,7]
[381406177,1756187438570,-500.0,0.00032986,2]
[381406178,1756187438582,-500.0,0.00032986,7]
[381406179,1756187438592,-500.0,0.00032986,7]
[381406180,1756187438601,-373.89799678,0.00032986,7]
[381406181,1756187438610,-500.0,0.00032986,7]
[381406182,1756187438620,-544.01052242,0.00032986,2]
[381406183,1756187438631,-500.0,0.00032986,7]
[381406184,1756187438640,-500.0,0.00032986,7]
[381406185,1756187438649,-500.0,0.00032986,7]
[381406186,1756187438659,-387.68965033,0.00032986,7]
[381406187,1756187438668,-500.0,0.00032986,7]
[381406188,1756187438677,-500.0,0.00032986,2]
[381406189,1756187438686,-500.0,0.00032986,7]
[381406190,1756187438695,-536.41792562,0.00032986,7]
[381406191,1756187438704,-500.0,0.00032986,7]
[381406192,1756187438714,-500.0,0.00032986,7]
[381406193,1756187438723,-500.0,0.00032986,7]
[381406194,1756187438732,-500.0,0.00032986,7]
[381406195,1756187438741,-500.0,0.00032986,2]
[381406196,1756187438751,-454.87015883,0.00032986,7]
[381406197,1756187438760,-500.0,0.00032986,7]
[381406198,1756187438769,-500.0,0.00032986,2]
[381406199,1756187438779,-500.0,0.00032986,7]
[381406200,1756187438788,-500.0,0.00032986,7]
[381406201,1756187438798,-500.0,0.00032986,7]
[381406202,1756187438807,-500.0,0.00032986,7]
[381406203,1756187438817,-500.0,0.00032986,7]
[381406204,1756187438826,-550.53104363,0.00032986,7]
[381406205,1756187438836,-500.0,0.00032986,7]
[381406206,1756187438845,-500.0,0.00032986,7]
[381406207,1756187438855,-500.0,0.00032986,7]
[381406208,1756187438864,-525.2383974,0.00032986,7]
[381406209,1756187438875,-500.0,0.00032986,7]
[381406210,1756187438886,-500.0,0.00032986,7]
[381406211,1756187438897,-500.0,0.00032986,7]
[381406212,1756187438908,-500.0,0.00032986,7]
[381406213,1756187438919,-500.0,0.00032986,7]
[381406214,1756187438929,-500.0,0.00032986,2]
[381406215,1756187438939,-399.5685714,0.00032986,7]
[381406216,1756187438948,-500.0,0.00032986,2]
[381406217,1756187438958,-500.0,0.00032986,7]
[381406218,1756187438969,-500.0,0.00032986,2]
[381406219,1756187438979,-500.0,0.00032986,7]
[381406220,1756187438988,-500.0,0.00032986,2]
[381406221,1756187438997,-500.0,0.00032986,7]
[381406222,1756187439006,-500.0,0.00032986,2]
[381406223,1756187439016,-500.0,0.00032986,7]
[381406224,1756187439027,-500.0,0.00032986,7]
[381406225,1756187439037,-500.0,0.00032986,7]
[381406226,1756187439049,-500.0,0.00032986,7]
[381406227,1756187439058,-500.0,0.00032986,7]
[381406228,1756187439067,-500.0,0.00032986,7]
[381406229,1756187439078,-500.0,0.00032986,7]
[381406230,1756187439087,-500.0,0.00032986,7]
[381406231,1756187439097,-500.0,0.00032986,7]
[381406232,1756187439106,-500.0,0.00032986,7]
[381406233,1756187439115,-500.0,0.00032986,7]
[381406234,1756187439124,-600.0,0.00033646,20]
[381406235,1756187439133,-350.67783645,0.00033712,21]
[381406236,1756187439143,-500.0,0.00035,5]
[381406237,1756187439153,-350.67783645,0.00035439,24]
[381406238,1756187439164,-343.40636136,0.00035548,5]
[381406239,1756187439173,-637.0,0.00036776,2]
[381406240,1756187439182,-2155.0,0.00036776,2]
[381406241,1756187439191,-720.0,0.0003701,20]
[381406242,1756187439202,-350.67783645,0.00037166,28]
[381406243,1756187439212,-500.0,0.00037336,5]
[381406244,1756187439221,-161.0922331,0.00038088,30]
[381406245,1756187439231,-161.0922331,0.00038088,30]
[381406246,1756187439240,-161.0922331,0.00038088,30]
[381406247,1756187439249,-160.0703504,0.00038088,30]
[381406248,1756187439259,-500.0,0.00038356,14]
[381406249,1756187439269,-500.0,0.0003863,14]
[381406250,1756187439278,-350.67783645,0.00038892,32]
[381406251,1756187439287,-500.0,0.00038904,14]
[381406252,1756187439296,-151.0,0.00039133,2]
[381406253,1756187439306,-500.0,0.00039178,14]
[381406254,1756187439316,-500.0,0.00039301,5]
[381406255,1756187439325,-500.0,0.00039452,14]
[381406256,1756187439335,-13025.4557554,0.00039682,3]
[381406257,1756187439346,-216.09257821,0.00039692,3]
[381406258,1756187439356,-150.0,0.00039697,2]
[381406259,1756187439365,-2957.33929482,0.000397,2]
[381406260,1756187439375,-600.0,0.00039725,7]
[381406261,1756187439385,-500.0,0.00039726,14]
[381406262,1756187439396,-400.39,0.00039768,10]
[381406263,1756187439405,-576.56,0.00039769,10]
[381406264,1756187439418,-480.46,0.00039769,10]
[381406265,1756187439428,-687.35445681,0.00039778,31]
[381406266,1756187439439,-233.5633648,0.00039778,31]
[381406267,1756187439448,-687.35445681,0.00039778,31]
[381406268,1756187439458,-687.35445681,0.00039778,31]
[381406269,1756187439468,-687.35445681,0.00039778,31]
[381406270,1756187439477,-687.35445681,0.00039778,31]
[381406271,1756187439486,-687.35445681,0.00039778,31]
[381406272,1756187439499,-687.35445681,0.00039778,31]
[381406273,1756187439508,-687.35445681,0.00039778,31]
[381406274,1756187439518,-687.35445681,0.00039778,31]
[381406275,1756187439529,-687.35445681,0.00039778,31]
[381406276,1756187439539,-687.35445681,0.00039778,31]
[381406277,1756187439550,-687.35445681,0.00039778,31]
[381406278,1756187439560,-687.35445681,0.00039778,31]
[381406279,1756187439569,-687.35445681,0.00039778,31]
[381406280,1756187439581,-687.35445681,0.00039778,31]
[381406281,1756187439591,-687.35445681,0.00039778,31]
[381406282,1756187439600,-687.35445681,0.00039778,31]
[381406283,1756187439609,-713.79116669,0.00039778,31]
[381406284,1756187439619,-713.79116669,0.00039778,31]
[381406285,1756187439628,-713.79116669,0.00039778,31]
[381406286,1756187439637,-713.79116669,0.00039778,31]
[381406287,1756187439646,-713.79116669,0.00039778,31]
[381406288,1756187439656,-713.79116669,0.00039778,31]
[381406289,1756187439665,-713.79116669,0.00039778,31]
[381406290,1756187439674,-713.79116669,0.00039778,31]
[381406291,1756187439683,-713.79116669,0.00039778,31]
[381406292,1756187439692,-759.14664708,0.00039778,31]
[381406293,1756187439702,-759.14664708,0.00039778,31]
[381406294,1756187439711,-759.14664708,0.00039778,31]
[381406295,1756187439721,-26050.9115107,0.00039779,3]
[381406296,1756187439730,-104203.646043,0.00039789,3]
[381406297,1756187439740,-370000.0,0.00039799,2]
[381406298,1756187439749,-152.0,0.000398,7]
[381406299,1756187439758,-499.3,0.00039825,7]
[381406300,1756187439767,-500.0,0.00039873,5]
[381406301,1756187439778,-26050.9115107,0.0003988,3]
[381406302,1756187439787,-52101.8230214,0.0003989,3]
[381406303,1756187439796,-1374.35,0.000399,14]
[381406304,1756187439805,-493643.93,0.000399,14]
[381406305,1756187439814,-199433.43710022,0.000399,14]
[381406306,1756187439832,-455.70417096,0.000399,14]
[381406349,1756187440424,-300.34578438,0.00039768,10]
[381406639,1756187443446,-209.0,0.00031809,60]
[381406641,1756187443455,-33.31421562,0.00039768,10]
[381406643,1756187443465,-277.16578434,0.000399,14]
[381406654,1756187443560,-289.54641168,0.000399,14]
[381406906,1756187446453,-158.688994,0.000316,7]
[381406908,1756187446462,-7561.611006,0.000399,14]
[381406918,1756187446558,-1000.0,0.000399,14]
[381406920,1756187446570,-429.35548269,0.000399,14]
[381406926,1756187446617,-1829.98334918,0.000399,14]
[381408546,1756187463936,407.5295621,0.000253,2]
[381410920,1756187488920,280.00007909,0.000199,2]
[381410932,1756187489042,280.00007881,0.00021627,2]
[381410942,1756187489152,280.00007881,0.00023353,2]
[381410954,1756187489273,280.00007881,0.0002508,2]
[381410965,1756187489384,280.00007881,0.00026806,6]
[381410975,1756187489491,280.00007881,0.00028533,10]
[381411130,1756187492263,417.15472785,0.00027,7]
[381414212,1756187608900,4725.87821797,0.00029592,7]
[381414213,1756187623235,3265.66186136,0.000281,2]
[381414214,1756187638683,1734.33813864,0.000281,2]
[381414215,1756187658916,256.91470644,0.000199,2]
[381414216,1756187659028,256.91470635,0.00021627,2]
[381414217,1756187659149,256.91470635,0.00023353,2]
[381414218,1756187659255,256.91470635,0.0002508,2]
[381414219,1756187659377,256.91470635,0.00026806,6]
[381414220,1756187660574,-256.91470635,0.00028533,10]
[381414221,1756187796521,417.15472785,0.00027,7]
[381414222,1756187819047,161.0,0.000281,2]
[381414223,1756187835608,235.15494405,0.000199,2]
[381414224,1756187835735,235.15494405,0.00021627,2]
[381414225,1756187835898,235.15494405,0.00023353,2]
[381414226,1756187836000,235.15494405,0.0002508,2]
[381414227,1756187836262,235.15494405,0.00026806,6]
[381414228,1756187866484,153.0,0.000281,2]
[381414229,1756187992903,-235.15494405,0.00028533,10]
[381414230,1756187992932,-182.61459,0.0002955,2]
[381414231,1756187992964,-160.0,0.0002965,2]
[381414232,1756187992996,-554.0,0.00029998,2]
[381414233,1756187993026,-300.0,0.00029998,2]
[381414234,1756187993571,-8986.01,0.00029998,2]
[381414235,1756187993588,-3718.42797926,0.00029998,2]
[381414236,1756187993598,-1000.0,0.00029999,2]
[381414237,1756187993607,-1000.0,0.00029999,2]
[381414238,1756187993821,-1000.0,0.00029999,2]
[381414239,1756187993830,-1000.0,0.00029999,2]
[381414240,1756187993839,-752.42,0.00029999,2]
[381414241,1756187994132,1808.50702006,0.000281,2]
[381414242,1756187994164,391.49297994,0.000281,2]
[381414243,1756188023732,214.59951049,0.000199,2]
[381414244,1756188023881,214.59951047,0.00021627,2]
[381414245,1756188023994,214.59951047,0.00023353,2]
[381414246,1756188024112,214.59951047,0.0002508,2]
[381414247,1756188024243,214.59951047,0.00026806,6]
[381414248,1756188057069,166.025535,0.00013699,2]
[381414250,1756188220119,221.00620451,0.000199,2]
[381414251,1756188220163,221.00620425,0.00021627,2]
[381414252,1756188220280,221.00620425,0.00023353,2]
[381414253,1756188220414,221.00620425,0.0002508,2]
[381414254,1756188220541,221.00620425,0.00026806,6]
[381414255,1756188345651,3269.947425,0.00028087,120]
[381414257,1756188351029,4386.00846612,0.000281,2]
[381414258,1756188351055,193.92132515,0.000281,2]
[381414259,1756188366994,3541.37340974,0.000281,2]
[381414260,1756188374624,1663.83814183,0.00027959,20]
[381414261,1756188375528,-258.50856053,0.00028239,20]
[381414262,1756188378889,-194.84275888,0.00028239,20]
[381414263,1756188378920,-186.5637155,0.00028533,10]
[381414264,1756188380635,-34.44248875,0.00028533,10]
[381414265,1756188384898,-193.49472648,0.0002871,2]
[381414266,1756188388204,-297.61056082,0.0002871,2]
[381414268,1756188389654,-216.36391022,0.0002871,2]
[381414269,1756188394598,-167.6361682,0.0002871,2]
[381414270,1756188398670,-370.40418073,0.0002871,2]
[381414271,1756188404842,-156.96,0.0002871,2]
[381414272,1756188405531,417.15472785,0.00027,7]
[381414273,1756188405820,214.7600657,0.000199,2]
[381414274,1756188405926,214.76006545,0.00021627,2]
[381414275,1756188406045,214.76006545,0.00023353,2]
[381414276,1756188406162,214.76006545,0.0002508,2]
[381414277,1756188406312,214.76006545,0.00026806,6]
[381414278,1756188407482,-214.76006545,0.00028533,10]
[381414279,1756188407507,-3.8818477,0.0002871,2]
[381414280,1756188572987,450.27519611,0.000281,2]
[381414281,1756188592628,204.30439115,0.000199,2]
[381414282,1756188592740,204.30439107,0.00021627,2]
[381414283,1756188592881,204.30439107,0.00023353,2]
[381414284,1756188592987,204.30439107,0.0002508,2]
[381414285,1756188593106,204.30439107,0.00026806,6]
[381414290,1756188632757,-204.30439107,0.00028533,10]
[381414291,1756188632766,-300.0,0.00029987,2]
[381414292,1756188632776,-300.0,0.00029987,2]
[381414293,1756188632785,-145.91149743,0.00029987,2]
[381414294,1756188632798,-154.08850257,0.00029987,2]
[381414295,1756188632808,-300.0,0.00029987,2]
[381414296,1756188632818,-14.32709389,0.00029987,2]
[381414297,1756188632850,-285.67290611,0.00029987,2]
[381414298,1756188632859,-1200.0,0.00029987,2]
[381414299,1756188632868,-1000.0,0.00029989,2]
[381414300,1756188632878,-539.62995433,0.00029989,2]
[381414301,1756188632890,-460.37004567,0.00029989,2]
[381414302,1756188632899,-306.86379328,0.00029989,2]
[381414389,1756188638370,-693.13620672,0.00029989,2]
[381414391,1756188638380,-708.07809783,0.00029989,2]
[381414397,1756188638429,-291.92190217,0.00029989,2]
[381414400,1756188638439,-1000.0,0.00029989,2]
[381414402,1756188638448,-3129.84861061,0.00029989,2]
[381414404,1756188638458,-1000.0,0.00029996,2]
[381414405,1756188638467,-1000.0,0.00029999,2]
[381414408,1756188638476,-920.7,0.00029999,2]
[381414410,1756188638486,-1005.5547356,0.00030008,14]
[381414412,1756188638495,-204.30439107,0.00030259,13]
[381414414,1756188638505,-3239.01289283,0.00031887,4]
[381414415,1756188638514,-204.30439107,0.00031986,17]
[381414418,1756188638523,-420.0,0.0003232,3]
[381414419,1756188638532,-258.0,0.0003232,3]
[381414421,1756188638542,-400.0,0.0003232,3]
[381414423,1756188638551,-420.0,0.0003232,2]
[381414425,1756188638560,-1600.0,0.00032457,3]
[381414428,1756188638569,-8884.7990168,0.00033573,2]
[381414430,1756188638579,-204.30439107,0.00033712,21]
[381414432,1756188638588,-185.187128,0.00034115,2]
[381414433,1756188638597,-587.0,0.00034834,2]
[381414435,1756188638606,-207.0,0.00035,120]
[381414437,1756188638615,-204.30439107,0.00035439,24]
[381414440,1756188638625,-220.112,0.00036842,2]
[381414442,1756188638634,-150.516,0.00036842,2]
[381414444,1756188638643,-204.30439107,0.00037166,28]
[381414446,1756188638653,-160.0,0.00037586,3]
[381414448,1756188638662,-431.70048741,0.00037812,2]
[381414450,1756188638671,-416.2447722,0.00037824,2]
[381414452,1756188638680,-204.30439107,0.00038892,32]
[381414453,1756188638689,-210.93744784,0.00039306,2]
[381414455,1756188638699,-500.0,0.00039403,7]
[381414457,1756188638708,-500.0,0.00039432,7]
[381414460,1756188638717,-2957.33929482,0.00039515,2]
[381414462,1756188638727,-500.0,0.00039517,7]
[381414464,1756188638735,-500.0,0.00039558,7]
[381414466,1756188638744,-178.50746004,0.00039561,7]
[381414468,1756188638754,-338.94789374,0.00039561,15]
[381414470,1756188638763,-500.0,0.00039561,15]
[381414472,1756188638772,-500.0,0.00039561,15]
[381414474,1756188638782,-500.0,0.00039561,15]
[381414476,1756188638792,-226.2686584,0.00039561,7]
[381414478,1756188638801,-500.0,0.00039561,2]
[381414480,1756188638810,-217.20779543,0.00039561,15]
[381414482,1756188638819,-211.0631746,0.00039561,15]
[381414484,1756188638828,-225.0264886,0.00039561,15]
[381414486,1756188638837,-282.66783582,0.00039561,2]
[381414487,1756188638846,-500.0,0.00039561,15]
[381414490,1756188638855,-2375.16020244,0.00039562,3]
[381414491,1756188638864,-687.35445681,0.00039571,15]
[381414494,1756188638874,-233.5633648,0.00039571,15]
[381414495,1756188638883,-687.35445681,0.00039571,15]
[381414498,1756188638893,-687.35445681,0.00039571,15]
[381414500,1756188638902,-687.35445681,0.00039571,15]
[381414502,1756188638912,-687.35445681,0.00039571,15]
[381414504,1756188638922,-687.35445681,0.00039571,15]
[381414506,1756188638931,-687.35445681,0.00039571,15]
[381414508,1756188638940,-687.35445681,0.00039571,15]
[381414510,1756188638949,-687.35445681,0.00039571,15]
[381414512,1756188638959,-687.35445681,0.00039571,15]
[381414514,1756188638968,-687.35445681,0.00039571,15]
[381414516,1756188638978,-687.35445681,0.00039571,15]
[381414518,1756188638987,-687.35445681,0.00039571,15]
[381414520,1756188638996,-687.35445681,0.00039571,15]
[381414522,1756188639005,-713.79116669,0.00039571,15]
[381414524,1756188639014,-713.79116669,0.00039571,15]
[381414526,1756188639024,-713.79116669,0.00039571,15]
[381414528,1756188639033,-713.79116669,0.00039571,15]
[381414530,1756188639042,-713.79116669,0.00039571,15]
[381414532,1756188639051,-713.79116669,0.00039571,15]
[381414534,1756188639060,-713.79116669,0.00039571,15]
[381414536,1756188639069,-713.79116669,0.00039571,15]
[381414538,1756188639078,-713.79116669,0.00039571,15]
[381414540,1756188639087,-713.79116669,0.00039571,15]
[381414542,1756188639096,-696.83862648,0.00039571,15]
[381414544,1756188639111,-696.83862648,0.00039571,15]
[381414546,1756188639120,-696.83862648,0.00039571,15]
[381414547,1756188639133,-696.83862648,0.00039571,15]
[381414550,1756188639142,-696.83862648,0.00039571,15]
[381414552,1756188639152,-500.0,0.00039571,15]
[381414554,1756188639161,-5870.27518776,0.00039571,7]
[381414556,1756188639171,-867.38,0.00039571,120]
[381414557,1756188639180,-500.0,0.00039571,14]
[381414559,1756188639189,-376.39720582,0.00039571,7]
[381414561,1756188639198,-376.39720582,0.00039572,3]
[381414564,1756188639207,-104692.036979,0.00039572,3]
[381414566,1756188639217,-8313.06070854,0.00039572,3]
[381414568,1756188639227,-170.81,0.00039572,3]
[381414570,1756188639236,-512.47,0.00039572,3]
[381414572,1756188639245,-500.0,0.00039573,5]
[381414574,1756188639254,-500.0,0.00039573,5]
[381414576,1756188639263,-500.0,0.00039573,5]
[381414578,1756188639273,-500.0,0.00039573,5]
[381414580,1756188639282,-190.0,0.00039573,7]
[381414582,1756188639292,-370000.0,0.00039582,2]
[381414584,1756188639302,-1187.58010122,0.00039615,3]
[381414585,1756188639317,-500.0,0.0003963,7]
[381414587,1756188639326,-600.0,0.00039725,7]
[381414589,1756188639336,-160.0,0.00039755,2]
[381414591,1756188639345,-160.0,0.0003976,2]
[381414593,1756188639355,-376.39720582,0.00039765,2]
[381414595,1756188639364,-217.18350301,0.00039765,2]
[381414597,1756188639373,-293.85068442,0.00039767,7]
[381414599,1756188639382,-150.0,0.00039842,2]
[381414601,1756188639392,-500.0,0.00039845,14]
[381414603,1756188639401,-4000.0,0.0003985,8]
[381414605,1756188639410,-500.0,0.00039873,5]
[381414607,1756188639420,-500.0,0.00039873,5]
[381414609,1756188639429,-500.0,0.00039873,5]
[381414612,1756188639439,-500.57010825,0.00039873,5]
[381414613,1756188639448,-500.0,0.00039873,5]
[381414615,1756188639458,-500.0,0.00039873,5]
[381414617,1756188639467,-500.0,0.00039873,5]
[381414619,1756188639477,-2375.16020244,0.0003988,3]
[381414621,1756188639486,-104692.036979,0.0003989,3]
[381414623,1756188639495,-9500.64080976,0.0003989,3]
[381414625,1756188639504,-194.72792766,0.00039899,14]
[381414627,1756188639513,-201.93286099,0.00039899,14]
[381414629,1756188639522,-209.40437684,0.00039899,14]
[381414631,1756188639531,-217.15233878,0.00039899,14]
[381414633,1756188639540,-225.18697532,0.00039899,14]
[381414635,1756188639549,-233.51889341,0.00039899,14]
[381414637,1756188639559,-242.15909246,0.00039899,14]
[381414639,1756188639568,-223.31899693,0.00039899,14]
[381414641,1756188639577,-299.61533008,0.000399,61]
[381414643,1756188639587,-90672.86669493,0.000399,14]
[381414645,1756188639596,-898.69,0.000399,7]
[381414647,1756188639605,-4461.55,0.000399,14]
[381414649,1756188639615,-9055.06,0.000399,14]
[381414651,1756188639624,-152.0,0.000399,7]
[381414653,1756188639634,-199433.43,0.000399,14]
[381414655,1756188639643,-325378.715315,0.000399,14]
[381414749,1756188640548,-122.52514802,0.00039562,10]
[381415327,1756188646699,-199.0,0.00039471,120]
[381415329,1756188646710,-930.39485198,0.00039562,10]
[381415331,1756188646720,-216.09257821,0.0003976,2]
[381415333,1756188646730,-108794.51256981,0.000399,14]
[381415335,1756188646744,-6673.94315653,0.000399,14]
[381420759,1756188710013,417.15472785,0.00027,7]
[381420760,1756188768191,201.9736871,0.000199,2]
[381420761,1756188768316,201.97368698,0.00022077,2]
[381420762,1756188768429,201.97368698,0.00024254,2]
[381420763,1756188769301,201.97368698,0.00026431,5]
[381420764,1756188770259,-160.0,0.00028608,10]
[381420765,1756188774778,-199.0,0.00028508,10]
[381420766,1756188774811,-41.97368698,0.00028608,10]
[381420767,1756188946601,201.80985764,0.000199,2]
[381420768,1756188946722,201.80985763,0.00021826,2]
[381420769,1756188947083,9.45572523,0.00023752,2]
[381420770,1756188947111,192.3541324,0.00023752,2]
[381420771,1756188947560,201.80985763,0.00025677,3]
[381420772,1756188947782,174.34571015,0.00027603,8]
[381420773,1756188947813,27.46414748,0.00027603,8]
[381420774,1756188962499,4602.0,0.000281,2]
[381420775,1756188967410,-152.0,0.00028608,30]
[381420776,1756188969650,-42.31,0.00028608,30]
[381420777,1756188971315,199.0,0.00028508,30]
[381420778,1756189012979,417.15472785,0.00027,7]
[381420779,1756189068088,166.025535,0.00013699,2]
[381420780,1756189122868,203.10504697,0.000199,2]
[381420781,1756189123003,203.10504693,0.00021688,2]
[381420782,1756189123229,203.10504693,0.00023476,2]
[381420783,1756189123349,203.10504693,0.00025265,3]